fUST/lending_fUST_20260130
["ID","MTS","AMOUNT","RATE_DAILY","PERIOD"]
[404033326,1769764238636,-500.0,0.00015292,2]
[404033327,1769764238647,-500.0,0.00015292,2]
[404033328,1769764238658,-500.0,0.00015292,2]
[404033329,1769764238668,-500.0,0.00015292,2]
[404033330,1769764238680,-500.0,0.00015292,2]
[404033331,1769764238690,-500.0,0.00015292,2]
[404033332,1769764238705,-500.0,0.00015292,2]
[404033333,1769764238717,-500.0,0.00015292,2]
[404033334,1769764238730,-500.0,0.00015292,2]
[404033335,1769764238742,-500.0,0.00015292,2]
[404033336,1769764238753,-500.0,0.00015292,2]
[404033337,1769764238765,-500.0,0.00015292,2]
[404033338,1769764238776,-324.61232282,0.00015292,2]
[404033339,1769764238788,-3069.100549,0.00015293,2]
[404033340,1769764238799,-1389.1635795,0.00015293,2]
[404033341,1769764238810,-309.466,0.00015295,2]
[404033342,1769764238821,-177.0,0.00015297,2]
[404033343,1769764238832,-151.0,0.000153,2]
[404033344,1769764238843,-394.06,0.00015301,3]
[404033345,1769764238855,-500.0,0.00015308,2]
[404033346,1769764238866,-500.0,0.00015308,2]
[404033347,1769764238878,-18127.52102474,0.00015311,2]
[404033348,1769764238893,-47532.95505738,0.00015311,2]
[404033349,1769764238908,-4045.22627833,0.00015311,2]
[404033350,1769764238926,-3100.42953345,0.00015311,2]
[404033351,1769764238940,-4269.35212161,0.00015311,2]
[404033352,1769764238952,-2084.42943746,0.00015311,2]
[404033353,1769764238965,-4214.73291526,0.00015311,2]
[404033354,1769764238982,-865.64963724,0.00015311,2]
[404033355,1769764238995,-2088.03168191,0.00015311,2]
[404033365,1769764240018,-528.44253924,0.00015292,2]
[404033366,1769764240027,-75192.46594005,0.00015311,2]
[404033398,1769764244816,-475.0,0.00015155,2]
[404033399,1769764244826,-475.0,0.00015155,2]
[404033400,1769764244838,-475.0,0.00015155,2]
[404033401,1769764244847,-475.0,0.00015155,2]
[404033402,1769764244856,-475.0,0.00015155,2]
[404033403,1769764244866,-475.0,0.00015155,2]
[404033404,1769764244875,-1622.09545673,0.00015311,2]
[404033483,1769764246097,-25878.31559067,0.00015311,2]
[404033489,1769764246152,-1300.14686288,0.00015311,2]
[404033492,1769764246167,-1878.14070067,0.00015311,2]
[404033548,1769765106485,202.0,0.00034715,120]
[404033566,1769765431780,-300.0,0.00011999,2]
[404033567,1769765431790,-150.0,0.00011999,2]
[404033568,1769765431799,-121.14354902,0.00012,5]
[404033569,1769765431811,-10684.26843479,0.00012,5]
[404033570,1769765431834,-7059.44811742,0.00012,5]
[404033571,1769765431844,-501.18204101,0.00012239,2]
[404033572,1769765431855,-300.0,0.00012239,2]
[404033581,1769765432008,-300.0,0.00012239,2]
[404033583,1769765432020,-300.0,0.00012239,2]
[404033585,1769765432029,-253.64087626,0.00012239,2]
[404033641,1769765437893,-46.35912374,0.00012239,2]
[404033642,1769765437903,-300.0,0.00012239,2]
[404033643,1769765437913,-300.0,0.00012239,2]
[404033644,1769765437922,-300.0,0.00012239,2]
[404033645,1769765437931,-300.0,0.00012239,2]
[404033646,1769765437941,-300.0,0.00012239,2]
[404033647,1769765437952,-300.0,0.00012239,2]
[404033648,1769765437962,-300.0,0.00012239,2]
[404033649,1769765437971,-300.0,0.00012239,2]
[404033650,1769765437980,-300.0,0.00012239,2]
[404033651,1769765437990,-300.0,0.00012239,2]
[404033652,1769765437999,-300.0,0.00012239,2]
[404033653,1769765438009,-473.1531332,0.00012483,2]
[404033654,1769765438031,-126.8468668,0.00012483,2]
[404033655,1769765438040,-278.9551907,0.00013167,2]
[404033656,1769765438049,-420.0,0.00013172,2]
[404033657,1769765438058,-500.0,0.00013273,2]
[404033658,1769765438068,-500.0,0.00013273,2]
[404033659,1769765438077,-497.8433772,0.00013273,2]
[404033660,1769765438087,-500.0,0.00013273,2]
[404033661,1769765438096,-500.0,0.00013273,2]
[404033662,1769765438105,-500.0,0.00013273,2]
[404033663,1769765438115,-500.0,0.00013699,2]
[404033664,1769765438126,-720.0,0.00013731,2]
[404033665,1769765438136,-177.0,0.00014,2]
[404033666,1769765438145,-499.49609723,0.00014,2]
[404033667,1769765438155,-180.0,0.0001446,2]
[404033668,1769765438166,-455.73056467,0.00014677,2]
[404033669,1769765438176,-274.39259214,0.00014677,2]
[404033670,1769765438187,-545.92242427,0.00014677,2]
[404033671,1769765438197,-500.0,0.0001486,2]
[404033672,1769765438207,-511.3607089,0.0001486,2]
[404033673,1769765438216,-500.0,0.0001486,2]
[404033674,1769765438226,-500.0,0.0001486,2]
[404033675,1769765438236,-500.0,0.0001486,2]
[404033676,1769765438245,-464.92246456,0.0001486,2]
[404033677,1769765438255,-500.0,0.0001486,2]
[404033678,1769765438265,-500.0,0.00014862,2]
[404033679,1769765438274,-2000.0,0.00014862,2]
[404033680,1769765438283,-2000.0,0.00014862,2]
[404033681,1769765438292,-2000.0,0.00014862,2]
[404033682,1769765438301,-2000.0,0.00014862,2]
[404033683,1769765438311,-2000.0,0.00014862,2]
[404033684,1769765438320,-2000.0,0.00014862,2]
[404033685,1769765438329,-2000.0,0.00014862,2]
[404033686,1769765438338,-1439.461,0.00014862,2]
[404033687,1769765438348,-992.036,0.00014862,2]
[404033688,1769765438357,-475.0,0.00014862,2]
[404033689,1769765438367,-475.0,0.00014862,2]
[404033690,1769765438376,-475.0,0.00014862,2]
[404033691,1769765438386,-475.0,0.00014862,2]
[404033692,1769765438395,-475.0,0.00014862,2]
[404033693,1769765438404,-475.0,0.00014862,2]
[404033694,1769765438414,-475.0,0.00014862,2]
[404033695,1769765438423,-475.0,0.00014862,2]
[404033696,1769765438432,-475.0,0.00014862,2]
[404033697,1769765438441,-475.0,0.00014862,2]
[404033698,1769765438451,-475.0,0.00014862,2]
[404033699,1769765438461,-330.77416476,0.00014876,7]
[404033700,1769765438470,-599.89154612,0.00014953,2]
[404033701,1769765438479,-150.0,0.00015068,2]
[404033702,1769765438489,-500.0,0.00015068,2]
[404033703,1769765438498,-500.0,0.00015068,2]
[404033704,1769765438507,-150.0,0.00015068,2]
[404033705,1769765438516,-150.0,0.00015068,2]
[404033706,1769765438525,-150.0,0.00015068,2]
[404033707,1769765438535,-179.65708539,0.00015068,2]
[404033708,1769765438544,-864.0,0.00015104,2]
[404033709,1769765438553,-500.0,0.00015136,2]
[404033710,1769765438562,-632.14525905,0.00015205,2]
[404033711,1769765438572,-150.0,0.00015205,2]
[404033712,1769765438582,-500.0,0.00015205,2]
[404033713,1769765438591,-150.0,0.00015205,2]
[404033714,1769765438600,-150.0,0.00015205,2]
[404033715,1769765438609,-1223.6993568,0.00015211,2]
[404033716,1769765438619,-1041.66666667,0.00015252,2]
[404033717,1769765438628,-151.0,0.000153,2]
[404033718,1769765438638,-291.58644956,0.00015302,2]
[404033719,1769765438647,-2180.6418957,0.00015308,2]
[404033720,1769765438655,-304.926,0.00015308,2]
[404033721,1769765438665,-837.6104158,0.00015308,2]
[404033722,1769765438675,-287.78943227,0.0001531,2]
[404033723,1769765438685,-585.74591677,0.0001531,2]
[404033724,1769765438694,-1054.34265018,0.0001531,2]
[404033725,1769765438704,-218.20604872,0.0001531,2]
[404033726,1769765438713,-518.02097808,0.0001531,2]
[404033727,1769765438722,-13388.82455225,0.00015311,2]
[404033728,1769765438734,-472.80020447,0.00015311,2]
[404033732,1769765440276,-73618.95205179,0.00015311,2]
[404033733,1769765440288,-2999.97612,0.00015311,2]
[404033754,1769765445011,-2723.0,0.00015311,2]
[404033809,1769765446181,-1000.0,0.00015311,2]
[404033810,1769765759083,6956.0,0.0003,120]
[404033811,1769766115650,52437.39,0.00034723,120]
[404033815,1769766436131,-155.27,0.0001,2]
[404033816,1769766436156,-150.0,0.00011521,2]
[404033817,1769766436177,-183.66766553,0.00013246,2]
[404033818,1769766436197,-734.67066211,0.00013246,2]
[404033819,1769766436216,-1653.00898975,0.00013246,2]
[404033820,1769766436236,-300.0,0.00013272,2]
[404033821,1769766436257,-303.05218116,0.00013273,2]
[404033841,1769766631933,-300.0,0.00013009,2]
[404033869,1769766638053,-2447.80218013,0.00013009,2]
[404033870,1769766638063,-604.0,0.00013009,2]
[404033871,1769766638073,-150.0,0.00013074,2]
[404033872,1769766638083,-556.26545896,0.0001314,2]
[404033873,1769766638092,-231.97583608,0.00013246,2]
[404033874,1769766638101,-417.55650494,0.00013246,2]
[404033875,1769766638111,-196.94781884,0.00013273,2]
[404033876,1769766638120,-500.0,0.00013273,2]
[404033877,1769766638130,-500.0,0.00013273,2]
[404033878,1769766638140,-500.0,0.00013273,2]
[404033879,1769766638153,-166.36719495,0.00013386,2]
[404033880,1769766638163,-214.90851508,0.00013386,2]
[404033881,1769766638175,-450.5602647,0.00013386,2]
[404033882,1769766638186,-1497.30475451,0.00013386,2]
[404033883,1769766638195,-378.82569409,0.00013426,2]
[404033884,1769766638204,-305.35661585,0.00013495,2]
[404033885,1769766638214,-300.0,0.00013537,2]
[404033886,1769766638224,-300.0,0.00013537,2]
[404033887,1769766638234,-300.0,0.00013537,2]
[404033888,1769766638245,-300.0,0.00013537,2]
[404033889,1769766638255,-300.0,0.00013537,2]
[404033890,1769766638265,-300.0,0.00013537,2]
[404033892,1769766638275,-50.74384025,0.00013537,2]
[404033894,1769766638286,-249.25615975,0.00013537,2]
[404033895,1769766638296,-300.0,0.00013537,2]
[404033896,1769766638305,-300.0,0.00013537,2]
[404033897,1769766638314,-300.0,0.00013537,2]
[404033898,1769766638324,-300.0,0.00013537,2]
[404033899,1769766638333,-300.0,0.00013537,2]
[404033900,1769766638343,-300.0,0.00013537,2]
[404033901,1769766638353,-300.0,0.00013537,2]
[404033902,1769766638362,-300.0,0.00013537,2]
[404033903,1769766638372,-109.54185925,0.00013699,2]
[404033904,1769766638383,-890.45814075,0.00013699,2]
[404033905,1769766638392,-184.54141958,0.00013699,2]
[404033906,1769766638403,-315.45858042,0.00013699,2]
[404033907,1769766638412,-875.97612744,0.00014068,2]
[404033908,1769766638422,-1321.77356239,0.00014132,2]
[404033909,1769766638431,-242.00915928,0.00014205,2]
[404033910,1769766638441,-616.7708081,0.00014205,2]
[404033911,1769766638453,-350.2977924,0.00014205,2]
[404033912,1769766638462,-219.21324511,0.00014205,2]
[404033913,1769766638472,-1874.38693366,0.00014544,2]
[404033914,1769766638481,-196.07090996,0.00015036,2]
[404033915,1769766638490,-500.0,0.00015036,2]
[404033916,1769766638499,-150.0,0.00015036,2]
[404033917,1769766638508,-177.0,0.00015074,2]
[404033918,1769766638518,-500.0,0.00015173,2]
[404033919,1769766638527,-150.0,0.00015173,2]
[404033920,1769766638537,-1101.32942112,0.00015211,2]
[404033921,1769766638546,-3044.75772148,0.00015211,2]
[404033922,1769766638556,-426.03598153,0.00015218,2]
[404033923,1769766638565,-500.0,0.00015218,2]
[404033924,1769766638574,-434.49896611,0.00015218,2]
[404033925,1769766638584,-779.5216003,0.00015219,2]
[404033926,1769766638593,-2487.15318209,0.00015219,2]
[404033927,1769766638602,-338.81077718,0.00015219,2]
[404033928,1769766638618,-1619.04522282,0.00015219,2]
[404033929,1769766638628,-250.0,0.0001524,2]
[404033930,1769766638637,-2000.0,0.0001524,2]
[404033931,1769766638646,-514.84070869,0.0001524,2]
[404033932,1769766638655,-250.0,0.0001524,2]
[404033933,1769766638664,-2000.0,0.0001524,2]
[404033934,1769766638674,-250.0,0.0001524,2]
[404033935,1769766638683,-2000.0,0.0001524,2]
[404033936,1769766638693,-250.0,0.0001524,2]
[404033937,1769766638702,-2000.0,0.0001524,2]
[404033938,1769766638711,-250.0,0.0001524,2]
[404033939,1769766638720,-187.78006525,0.0001524,2]
[404033940,1769766638729,-2000.0,0.0001524,2]
[404033941,1769766638738,-194.72792766,0.0001524,2]
[404033942,1769766638748,-250.0,0.0001524,2]
[404033943,1769766638757,-2000.0,0.0001524,2]
[404033944,1769766638766,-250.0,0.0001524,2]
[404033945,1769766638776,-201.93286099,0.0001524,2]
[404033946,1769766638785,-250.0,0.0001524,2]
[404033947,1769766638794,-1762.68036795,0.0001524,2]
[404033948,1769766638803,-250.0,0.0001524,2]
[404033949,1769766638813,-209.40437684,0.0001524,2]
[404033950,1769766638822,-250.0,0.0001524,2]
[404033951,1769766638831,-250.0,0.0001524,2]
[404033952,1769766638840,-217.15233878,0.0001524,2]
[404033953,1769766638850,-250.0,0.0001524,2]
[404033954,1769766638859,-250.0,0.0001524,2]
[404033955,1769766638868,-225.18697532,0.0001524,2]
[404033956,1769766638878,-250.0,0.0001524,2]
[404033957,1769766638887,-250.0,0.0001524,2]
[404033958,1769766638896,-233.51889341,0.0001524,2]
[404033959,1769766638905,-250.0,0.0001524,2]
[404033960,1769766638914,-250.0,0.0001524,2]
[404033961,1769766638923,-242.15909246,0.0001524,2]
[404033962,1769766638936,-250.0,0.0001524,2]
[404033963,1769766638945,-308.80994647,0.0001524,2]
[404033964,1769766638955,-251.11897888,0.0001524,2]
[404033965,1769766638964,-250.0,0.0001524,2]
[404033966,1769766638973,-250.0,0.0001524,2]
[404033967,1769766638983,-260.4103811,0.0001524,2]
[404033968,1769766638993,-250.0,0.0001524,2]
[404033969,1769766639003,-270.0455652,0.0001524,2]
[404033970,1769766639012,-249.19125586,0.0001524,2]
[404033971,1769766639022,-280.03725112,0.0001524,2]
[404033972,1769766639032,-290.39862941,0.0001524,2]
[404033973,1769766639041,-301.1433787,0.0001524,2]
[404033974,1769766639051,-250.0,0.0001524,2]
[404033975,1769766639060,-250.0,0.0001524,2]
[404033976,1769766639069,-360.268,0.00015248,2]
[404033977,1769766639079,-15798.8996173,0.00015249,2]
[404033978,1769766639089,-500.0,0.00015249,2]
[404033979,1769766639099,-2030.296672,0.00015274,2]
[404033980,1769766639108,-158.5974314,0.00015308,2]
[404033981,1769766639117,-416.53994876,0.00015309,2]
[404033982,1769766639127,-392.7708877,0.00015309,2]
[404033983,1769766639137,-500.0,0.0001531,2]
[404033984,1769766639148,-500.0,0.0001531,2]
[404033985,1769766639159,-500.0,0.0001531,2]
[404033986,1769766639168,-500.0,0.0001531,2]
[404033987,1769766639178,-500.0,0.0001531,2]
[404033988,1769766639187,-500.0,0.0001531,2]
[404033989,1769766639198,-500.0,0.0001531,2]
[404033990,1769766639208,-533.60738785,0.0001531,2]
[404033991,1769766639218,-67435.30253256,0.00015311,2]
[404033992,1769766639232,-295.04921514,0.00015311,2]
[404034049,1769766646260,-105897.01984189,0.00015311,2]
[404034050,1769766646314,-200.23224707,0.0001531,2]
[404034051,1769766646324,-2048.54881937,0.00015311,2]
[404034052,1769766646425,-1290.56491727,0.00015311,2]
[404034061,1769767330918,1000.0,0.0003,120]
[404034062,1769767650132,-152.76,0.0001,2]
[404034063,1769767650152,-150.0,0.00010777,2]
[404034064,1769767650172,-450.55080939,0.00011734,2]
[404034065,1769767650193,-177.0,0.00012777,2]
[404034066,1769767650213,-94.8012382,0.000132,2]
[404034117,1769767838401,-232.9087618,0.000132,2]
[404034118,1769767838411,-300.0,0.00013272,2]
[404034119,1769767838421,-339.92501183,0.00013273,2]
[404034120,1769767838431,-522.55588038,0.00013273,2]
[404034121,1769767838441,-505.92248654,0.00013273,2]
[404034122,1769767838450,-500.0,0.00013273,2]
[404034123,1769767838459,-500.0,0.00013273,2]
[404034124,1769767838469,-500.0,0.00013273,2]
[404034125,1769767838479,-1053.975132,0.00013699,2]
[404034126,1769767838489,-150.16357316,0.00013699,2]
[404034127,1769767838500,-497.51153951,0.00013699,2]
[404034129,1769767838511,-500.0,0.00013699,2]
[404034131,1769767838521,-500.0,0.00013699,2]
[404034132,1769767838530,-500.0,0.00013699,2]
[404034133,1769767838540,-500.0,0.00013699,2]
[404034134,1769767838551,-500.0,0.00013699,2]
[404034135,1769767838560,-500.82078053,0.00013699,2]
[404034136,1769767838569,-500.0,0.00013821,2]
[404034137,1769767838579,-1143.73216805,0.00013846,2]
[404034138,1769767838591,-151.0,0.00013964,2]
[404034139,1769767838600,-300.0,0.00013972,2]
[404034140,1769767838609,-300.0,0.00013972,2]
[404034141,1769767838619,-300.0,0.00013972,2]
[404034142,1769767838629,-300.0,0.00013972,2]
[404034143,1769767838638,-300.0,0.00013972,2]
[404034144,1769767838647,-300.0,0.00013972,2]
[404034145,1769767838658,-300.0,0.00013972,2]
[404034146,1769767838668,-300.0,0.00013972,2]
[404034147,1769767838677,-300.0,0.00013972,2]
[404034148,1769767838687,-300.0,0.00013972,2]
[404034149,1769767838696,-300.0,0.00013972,2]
[404034150,1769767838705,-300.0,0.00013972,2]
[404034151,1769767838714,-300.0,0.00013972,2]
[404034152,1769767838724,-300.0,0.00013972,2]
[404034153,1769767838733,-300.0,0.00013972,2]
[404034154,1769767838743,-500.0,0.00014247,2]
[404034155,1769767838753,-600.0,0.0001425,2]
[404034156,1769767838762,-1246.58921246,0.00014465,2]
[404034157,1769767838771,-500.0,0.00014544,2]
[404034158,1769767838781,-250.0,0.00014545,2]
[404034159,1769767838791,-250.0,0.00014545,2]
[404034160,1769767838800,-250.0,0.00014545,2]
[404034161,1769767838810,-2000.0,0.00014545,2]
[404034162,1769767838819,-365.59568771,0.00014545,2]
[404034163,1769767838829,-2000.0,0.00014545,2]
[404034164,1769767838838,-514.84070869,0.00014545,2]
[404034165,1769767838848,-500.0,0.00014545,2]
[404034166,1769767838858,-2487.15318209,0.00014545,2]
[404034167,1769767838867,-250.0,0.00014545,2]
[404034168,1769767838878,-250.0,0.00014545,2]
[404034169,1769767838887,-250.0,0.00014545,2]
[404034170,1769767838897,-250.0,0.00014545,2]
[404034171,1769767838907,-250.0,0.00014545,2]
[404034172,1769767838918,-250.0,0.00014545,2]
[404034173,1769767838929,-1957.856,0.00014545,2]
[404034174,1769767838939,-187.78006525,0.00014545,2]
[404034175,1769767838950,-194.72792766,0.00014545,2]
[404034176,1769767838960,-201.93286099,0.00014545,2]
[404034177,1769767838970,-209.40437684,0.00014545,2]
[404034178,1769767838980,-217.15233878,0.00014545,2]
[404034179,1769767838990,-225.18697532,0.00014545,2]
[404034180,1769767838999,-233.51889341,0.00014545,2]
[404034181,1769767839009,-181.72038379,0.00014545,2]
[404034182,1769767839030,-242.15909246,0.00014545,2]
[404034183,1769767839050,-251.11897888,0.00014545,2]
[404034184,1769767839070,-260.4103811,0.00014545,2]
[404034185,1769767839090,-270.0455652,0.00014545,2]
[404034186,1769767839111,-280.03725112,0.00014545,2]
[404034187,1769767839131,-290.39862941,0.00014545,2]
[404034188,1769767839150,-301.1433787,0.00014545,2]
[404034189,1769767839169,-2030.296672,0.000146,2]
[404034190,1769767839184,-2105.41764886,0.00014655,2]
[404034191,1769767839195,-2183.31810187,0.0001471,2]
[404034192,1769767839204,-2264.10087164,0.00014765,2]
[404034193,1769767839215,-204.0,0.00014777,2]
[404034194,1769767839224,-2347.87260389,0.0001482,2]
[404034195,1769767839235,-2638.26292108,0.0001486,2]
[404034196,1769767839247,-2434.74389024,0.00014875,2]
[404034197,1769767839257,-526.58884179,0.00014876,7]
[404034198,1769767839269,-999.46900834,0.00014876,7]
[404034199,1769767839280,-2524.82941417,0.0001493,2]
[404034200,1769767839289,-500.0,0.0001493,2]
[404034201,1769767839300,-2154.60191831,0.00014985,2]
[404034202,1769767839313,-5052.61499659,0.00015005,2]
[404034203,1769767839323,-150.0,0.00015036,2]
[404034204,1769767839335,-150.0,0.00015036,2]
[404034205,1769767839348,-150.0,0.00015036,2]
[404034206,1769767839360,-150.0,0.00015036,2]
[404034207,1769767839371,-150.0,0.00015036,2]
[404034208,1769767839381,-150.0,0.00015036,2]
[404034209,1769767839394,-150.0,0.00015036,2]
[404034210,1769767839404,-500.0,0.00015036,2]
[404034211,1769767839414,-201.59957773,0.00015036,2]
[404034212,1769767839423,-153.0,0.00015078,2]
[404034213,1769767839433,-153.0,0.00015078,2]
[404034214,1769767839443,-153.0,0.00015078,2]
[404034215,1769767839452,-153.0,0.00015078,2]
[404034216,1769767839462,-556.55831179,0.00015093,2]
[404034217,1769767839472,-2579.17784983,0.00015093,2]
[404034218,1769767839482,-975.42019021,0.00015152,2]
[404034219,1769767839492,-150.0,0.00015173,2]
[404034220,1769767839501,-150.0,0.00015173,2]
[404034221,1769767839514,-500.0,0.00015173,2]
[404034222,1769767839523,-500.0,0.00015204,2]
[404034223,1769767839533,-1002.16854797,0.0001521,2]
[404034224,1769767839543,-500.0,0.0001521,2]
[404034225,1769767839554,-251.87452986,0.00015248,2]
[404034226,1769767839564,-500.0,0.00015248,2]
[404034227,1769767839575,-1041.66666667,0.00015255,2]
[404034228,1769767839586,-500.0,0.00015293,2]
[404034229,1769767839595,-665.63712454,0.00015294,2]
[404034230,1769767839605,-1198.14682418,0.00015294,2]
[404034231,1769767839614,-234.85414002,0.00015294,2]
[404034232,1769767839624,-939.41656009,0.00015294,2]
[404034233,1769767839634,-698.25935592,0.00015294,2]
[404034234,1769767839643,-749.77190776,0.00015294,2]
[404034235,1769767839652,-1331.59490818,0.00015294,2]
[404034236,1769767839662,-282.12179318,0.00015294,2]
[404034237,1769767839672,-2113.6872602,0.00015294,2]
[404034238,1769767839681,-151.0,0.000153,2]
[404034239,1769767839690,-151.0,0.000153,2]
[404034240,1769767839699,-151.0,0.000153,2]
[404034241,1769767839708,-151.0,0.000153,2]
[404034242,1769767839718,-151.0,0.000153,2]
[404034243,1769767839728,-151.0,0.000153,2]
[404034244,1769767839738,-151.0,0.000153,2]
[404034245,1769767839748,-151.0,0.000153,2]
[404034246,1769767839757,-151.0,0.000153,2]
[404034247,1769767839767,-151.0,0.000153,2]
[404034248,1769767839776,-151.0,0.000153,2]
[404034249,1769767839785,-151.0,0.000153,2]
[404034250,1769767839794,-151.0,0.000153,2]
[404034251,1769767839804,-500.0,0.00015302,2]
[404034252,1769767839813,-9233.7401267,0.00015303,2]
[404034253,1769767839822,-3639.4516531,0.00015303,2]
[404034254,1769767839831,-3387.3309281,0.00015303,2]
[404034255,1769767839841,-500.0,0.00015309,2]
[404034257,1769767839850,-259.22310773,0.0001531,2]
[404034259,1769767839860,-267.3684888,0.0001531,2]
[404034261,1769767839869,-150.0,0.0001531,2]
[404034263,1769767839878,-150.0,0.0001531,2]
[404034265,1769767839888,-500.0,0.0001531,2]
[404034267,1769767839897,-155.498,0.0001531,2]
[404034269,1769767839907,-605.57828548,0.0001531,2]
[404034271,1769767839916,-500.0,0.0001531,2]
[404034273,1769767839926,-500.0,0.0001531,2]
[404034275,1769767839935,-500.0,0.0001531,2]
[404034277,1769767839944,-500.0,0.0001531,2]
[404034279,1769767839953,-500.0,0.0001531,2]
[404034281,1769767839963,-500.0,0.0001531,2]
[404034283,1769767839972,-500.0,0.0001531,2]
[404034285,1769767839981,-500.0,0.0001531,2]
[404034287,1769767839990,-500.0,0.0001531,2]
[404034289,1769767840000,-500.0,0.0001531,2]
[404034290,1769767840009,-500.0,0.0001531,2]
[404034292,1769767840018,-500.0,0.0001531,2]
[404034294,1769767840027,-500.0,0.0001531,2]
[404034296,1769767840036,-500.0,0.0001531,2]
[404034298,1769767840045,-510.74219765,0.0001531,2]
[404034300,1769767840054,-151.0,0.0001531,2]
[404034302,1769767840063,-1348501.37399137,0.00015311,2]
[404034304,1769767840076,-11218.946921,0.00015311,2]
[404034353,1769767840536,-3526.56067651,0.00015311,2]
[404034356,1769767840547,-837.43990435,0.00015311,2]
[404034429,1769767846601,-151.0,0.00013964,2]
[404034430,1769767846610,-151.0,0.00013964,2]
[404034431,1769767846619,-249.37903298,0.00013964,2]
[404034432,1769767846628,-683.43760571,0.00015155,2]
[404034433,1769767881599,500.0,0.00034781,120]
[404034434,1769767881828,500.0,0.00034781,120]
[404034435,1769767882075,500.0,0.00034781,120]
[404034436,1769767882306,500.0,0.00034781,120]
[404034437,1769767882648,500.0,0.00034781,120]
[404034438,1769767883102,531.16883005,0.00034781,120]
[404034502,1769769032287,-10657.19601078,0.00012,5]
[404034504,1769769032296,-43926.60838116,0.00012239,2]
[404034506,1769769032306,-300.0,0.00012239,2]
[404034508,1769769032315,-300.0,0.00012239,2]
[404034510,1769769032325,-300.0,0.00012239,2]
[404034528,1769769032471,-300.0,0.00012239,2]
[404034530,1769769032485,-300.0,0.00012239,2]
[404034532,1769769032495,-300.0,0.00012239,2]
[404034534,1769769032504,-300.0,0.00012239,2]
[404034536,1769769032514,-300.0,0.00012239,2]
[404034538,1769769032523,-300.0,0.00012239,2]
[404034540,1769769032532,-300.0,0.00012239,2]
[404034542,1769769032542,-300.0,0.00012239,2]
[404034544,1769769032551,-300.0,0.00012239,2]
[404034546,1769769032559,-300.0,0.00012239,2]
[404034548,1769769032568,-300.0,0.00012239,2]
[404034550,1769769032578,-300.0,0.00012239,2]
[404034552,1769769032587,-150.0,0.00013268,2]
[404034554,1769769032596,-500.0,0.00013273,2]
[404034556,1769769032609,-500.41302693,0.00013273,2]
[404034558,1769769032619,-500.0,0.00013273,2]
[404034560,1769769032627,-500.0,0.00013273,2]
[404034562,1769769032637,-500.53221398,0.00013273,2]
[404034564,1769769032647,-500.0,0.00013273,2]
[404034566,1769769032656,-494.18265189,0.00013273,2]
[404034568,1769769032665,-500.61810231,0.00013273,2]
[404034570,1769769032675,-500.0,0.00013273,2]
[404034572,1769769032684,-500.42926129,0.00013273,2]
[404034574,1769769032693,-504.81393243,0.00013273,2]
[404034576,1769769032702,-501.52215443,0.00013273,2]
[404034578,1769769032712,-500.57921653,0.00013273,2]
[404034580,1769769032721,-501.00416719,0.00013273,2]
[404034582,1769769032731,-320.39327364,0.00013273,2]
[404034584,1769769032740,-500.60380458,0.00013273,2]
[404034586,1769769032750,-500.21047809,0.00013273,2]
[404034588,1769769032759,-501.84108282,0.00013273,2]
[404034590,1769769032769,-500.78172484,0.00013273,2]
[404034592,1769769032777,-264.92283217,0.00013273,2]
[404034593,1769769032787,-501.21229095,0.00013273,2]